[Event "FIDE WSTC-50-65 2022"]
[Site "Acqui Terme"]
[Date "2022.06.29"]
[Round "9.2"]
[White "Short, Nigel D"]
[Black "Plotkin, Victor"]
[Result "1-0"]
[ECO "E07"]
[WhiteElo "2622"]
[BlackElo "2240"]
[Annotator "TA"]
[PlyCount "63"]
[EventDate "2022.06.20"]
[EventType "team-tourn"]
[EventCountry "ITA"]
[SourceTitle "playchess.com"]
[Source "ChessBase"]
[SourceQuality "1"]
[TimeControl "40/5400+30:1800+30"]

{[%evp 17,63,12,14,12,12,20,34,29,26,29,47,0,36,37,42,0,0,12,17,19,10,21,107,106,102,81,102,107,184,183,259,260,394,381,490,494,487,474,594,554,592,592,591,585,622,618,866,835]} 1. Nf3 {[%emt 0:01:00]} Nf6 {[%emt 0:01:00]} 2. d4 {[%emt 0:00:00]} d5 {[%emt 0:00:00]} 3. c4 {[%emt 0:00:00]} e6 {[%emt 0:00:00]} 4. Nc3 {[%emt 0:00:30]} c6 {[%emt 0:02:30]} 5. g3 {[%emt 0:01:30]} Nbd7 {[%emt 0:01:30]} 6. Bg2 {[%emt 0:00:00]} Be7 {[%emt 0:02:30]} 7. O-O {[%emt 0:01:00]} O-O {[%emt 0:00:00]} 8. Qd3 {[%emt 0:08:30]} b6 {[%emt 0:03:00]} 9. cxd5 {[%emt 0:03:30]} cxd5 {[%emt 0:04:30]} 10. Bf4 {[%emt 0:00:30] E07: Closed Catalan: Main Line (5 Nf3 0-0 6 0-0 Nbd7).} Bb7 {[%emt 0:02:30]} 11. Nb5 {[%emt 0:16:30]} Ne4 {[%emt 0:03:30]} 12. Rfc1 {[%emt 0:05:30] White is slightly better.} a6 {[%emt 0:08:30]} 13. Nc7 {[%emt 0:06:30]} Ra7 {[%emt 0:03:30] [#] Threatens to win with ...g5.} 14. h4 $146 {[%emt 0:01:30]} (14. Rc2 $1 $14) ({Predecessor:} 14. Bh3 Bc8 15. Nxe6 fxe6 16. Bxe6+ Kh8 17. Bxd5 Nef6 18. Bc6 Nh5 19. Bd2 Rc7 20. Be4 {1-0 (56) Gardner,A-Bradney,R (2123) ICCF email 2011}) 14... h6 {[%emt 0:01:30]} 15. Bh3 {[%emt 0:02:30][%cal Oc7e6]} Bd6 {[%emt 0:12:30] [#]} 16. Nxe6 {[%emt 0:05:30]} fxe6 {[%emt 0:00:30]} 17. Bxe6+ {[%emt 0:00:30]} Kh8 {[%emt 0:01:30]} 18. Bxd6 {[%emt 0:00:30]} Nxd6 {[%emt 0:00:30]} 19. Bxd7 {[%emt 0:00:00]} Rxf3 {[%emt 0:03:30]} (19... Qxd7 $11 {keeps the balance.} 20. Ne5 Qe8) 20. Qxf3 $16 {[%emt 0:02:00]} Qxd7 {[%emt 0:00:30] [#]} 21. Rc2 $1 {[%emt 0:00:30][%cal Bc1c2,Bc2c7,Bc7d7,Bd7d8,Bd8a8,Ba8d8,Bd8d6][%mdl 32]} Ra8 {[%emt 0:05:30]} 22. Rac1 {[%emt 0:00:30] Black must now prevent Rc7.} Qe6 {[%emt 0:03:30] [#]} (22... Re8 $16 {was called for.}) 23. Qf4 $1 $18 {[%emt 0:03:30]} Re8 {[%emt 0:10:30]} (23... Ne8 {keeps fighting.} 24. Qe5 Qf6 25. Qxf6 gxf6) 24. Rc7 {[%emt 0:01:30]} Ba8 {[%emt 0:01:30]} (24... Kh7 $142 25. Qe5 Qxe5 26. dxe5 Rxe5) 25. Qe5 {[%emt 0:04:30]} Qxe5 {[%emt 0:03:30]} 26. dxe5 {[%emt 0:00:00] White is clearly winning.} Rxe5 {[%emt 0:00:30]} 27. Rd7 {[%emt 0:00:00]} Re6 {[%emt 0:00:30]} 28. Rd8+ {[%emt 0:00:30]} Kh7 {[%emt 0:00:30]} 29. Rxa8 {[%emt 0:00:00]} Rxe2 {[%emt 0:00:30]} 30. h5 {[%emt 0:03:00]} d4 {[%emt 0:04:30]} 31. Rd8 {[%emt 0:00:30]} d3 {[%emt 0:01:30]} 32. Rxd6 {[%emt 0:00:30] Weighted Error Value: White=0.04 (flawless) /Black=0.49} 1-0

[Event "FIDE WSTC-50-65 2022"]
[Site "Acqui Terme"]
[Date "2022.06.29"]
[Round "9.3"]
[White "Findlay, Ian T."]
[Black "Hebden, Mark L"]
[Result "0-1"]
[ECO "C68"]
[WhiteElo "2156"]
[BlackElo "2452"]
[Annotator "TA"]
[PlyCount "80"]
[EventDate "2022.06.20"]
[EventType "team-tourn"]
[EventCountry "ITA"]
[SourceTitle "playchess.com"]
[Source "ChessBase"]
[SourceQuality "1"]
[TimeControl "40/5400+30:1800+30"]

{[%evp 17,80,0,14,0,0,0,25,0,0,0,0,0,0,0,8,6,12,17,26,-90,-85,-96,-94,-75,-76,-91,0,0,78,0,0,-91,-96,-82,-83,-124,-119,-128,-122,-119,-123,-120,-131,-125,-121,-161,-97,-106,-97,-162,-160,-178,-133,-152,-121,-192,-192,-242,-223,-288,-289,-460,-452,-535,-547]} 1. e4 {[%emt 0:01:00]} e5 {[%emt 0:01:00]} 2. Nf3 {[%emt 0:00:00]} Nc6 {[%emt 0:00:30]} 3. Bb5 {[%emt 0:00:00]} a6 {[%emt 0:00:30]} 4. Bxc6 {[%emt 0:00:30]} dxc6 {[%emt 0:00:00]} 5. O-O {[%emt 0:00:00]} Bd6 {[%emt 0:01:00]} 6. d4 {[%emt 0:00:00]} exd4 {[%emt 0:00:30]} 7. Qxd4 {[%emt 0:00:30]} f6 {[%emt 0:00:30]} 8. Be3 {[%emt 0:00:00]} Ne7 {[%emt 0:00:30]} 9. Nbd2 {[%emt 0:00:00]} Be6 {[%emt 0:01:30]} 10. Qc3 {[%emt 0:03:30] C68: Ruy Lopez: Exchange Variation, sidelines.} Qd7 {[%emt 0:06:30]} 11. Rad1 {[%emt 0:00:30]} O-O-O {[%emt 0:12:30]} 12. Nb3 {[%emt 0:00:30] White has an edge.} Bxb3 {[%emt 0:00:30]} 13. Qxb3 {[%emt 0:01:30]} Ng6 {[%emt 0:01:30] [#]} 14. Bc5 $146 {[%emt 0:00:30]} ({Predecessor:} 14. Nd4 Rhe8 15. f3 Bf4 16. Nf5 Qxd1 17. Rxd1 Rxd1+ 18. Kf2 Bxe3+ 19. Qxe3 Kb8 20. Nxg7 {1-0 (37) Guseinov,G (2665)-Roiz,M (2579) Tornelo INT 2021}) 14... Rhe8 {[%emt 0:09:30]} 15. Bxd6 {[%emt 0:01:30]} cxd6 {[%emt 0:01:30]} 16. Rfe1 {[%emt 0:00:30]} Qg4 {[%emt 0:02:30]} 17. h3 {[%emt 0:01:30]} Qh5 {[%emt 0:00:30]} 18. Nd4 {[%emt 0:08:30] [#]} (18. c4 $11) 18... Rxe4 $1 $17 {[%emt 0:06:30]} 19. Qd3 {[%emt 0:06:30]} (19. g4 Qe5) 19... Rxe1+ {[%emt 0:04:30]} 20. Rxe1 {[%emt 0:00:00][%cal Od4c6]} Ne5 {[%emt 0:01:30]} 21. Qb3 {[%emt 0:06:00]} d5 {[%emt 0:06:30]} ({Black should play} 21... Re8 $17 22. Re2 Nd7) 22. f4 $11 {[%emt 0:00:30]} Nd7 {[%emt 0:04:30]} (22... Nc4 $1 $11) 23. Qg3 {[%emt 0:00:30]} (23. g4 $1 $16 {[%cal Rg4h5]} Qf7 24. Nf5) 23... Re8 {[%emt 0:11:30]} 24. Kh2 {[%emt 0:06:30]} (24. Rxe8+ $11 {keeps the balance.} Qxe8 25. Nf5) 24... Rxe1 $17 {[%emt 0:01:30]} 25. Qxe1 {[%emt 0:00:00][%mdl 4096] Endgame KQN-KQN} Qf7 {[%emt 0:05:30] Inhibits Qe7.} 26. Nf5 {[%emt 0:00:00] [#] Hoping for Nd6+.} Qf8 {[%emt 0:00:30] Prevents Nd6+.} 27. b4 {[%emt 0:08:30]} g6 {[%emt 0:01:16]} 28. Nd4 {[%emt 0:00:30]} Kb8 {[%emt 0:03:36]} 29. c3 {[%emt 0:01:30]} c5 {[%emt 0:02:31]} 30. Nb3 {[%emt 0:05:30]} Qd6 {[%emt 0:01:33] Against Qe6} 31. g3 {[%emt 0:00:00]} Ka7 {[%emt 0:04:33]} (31... Kc7 $19 32. bxc5 Nxc5 33. Nxc5 Qxc5) 32. Qe3 {[%emt 0:05:00][%cal Rb4c5]} b6 {[%emt 0:00:12]} 33. a3 {[%emt 0:00:30]} (33. Qe8 $17) 33... Kb7 $19 {[%emt 0:00:30]} 34. Kg2 {[%emt 0:00:00]} h5 {[%emt 0:00:28]} 35. Kf2 {[%emt 0:04:00]} f5 {[%emt 0:01:41]} 36. Ke2 {[%emt 0:01:30] [#]} (36. Qe8 $17) 36... Kc7 $1 {[%emt 0:00:59]} 37. Qe8 {[%emt 0:04:30]} (37. h4 {is a better defense.}) 37... h4 {[%emt 0:00:33]} 38. gxh4 {[%emt 0:00:30]} Qxf4 {[%emt 0:00:19]} 39. Kd1 {[%emt 0:01:30]} (39. Nd2 $142 cxb4 40. axb4) 39... Qf3+ {[%emt 0:00:40]} 40. Kd2 {[%emt 0:00:00]} d4 {[%emt 0:00:00] Weighted Error Value: White=0.35/Black=0.10 (very precise)} 0-1

[Event "FIDE WSTC-50-65 2022"]
[Site "Acqui Terme"]
[Date "2022.06.29"]
[Round "9.4"]
[White "Emms, John M"]
[Black "Barron, Michael"]
[Result "1/2-1/2"]
[ECO "C84"]
[WhiteElo "2478"]
[BlackElo "2098"]
[Annotator "TA"]
[PlyCount "29"]
[EventDate "2022.06.20"]
[EventType "team-tourn"]
[EventCountry "ITA"]
[SourceTitle "playchess.com"]
[Source "ChessBase"]
[SourceQuality "1"]
[TimeControl "40/5400+30:1800+30"]

{[%evp 18,29,0,0,0,0,7,5,21,12,20,20,28,24]} 1. e4 {[%emt 0:01:00]} e5 {[%emt 0:01:00]} 2. Nf3 {[%emt 0:00:00]} Nc6 {[%emt 0:00:00]} 3. Bb5 {[%emt 0:00:00][%cal Bf1b5,Bb5a4,Ba4b3][%mdl 32]} a6 {[%emt 0:00:00]} 4. Ba4 {[%emt 0:00:30]} Nf6 {[%emt 0:00:00]} 5. O-O {[%emt 0:00:30]} Be7 {[%emt 0:00:00]} 6. d3 {[%emt 0:00:30]} b5 {[%emt 0:00:00]} 7. Bb3 {[%emt 0:00:00]} O-O {[%emt 0:00:00]} 8. Nc3 {[%emt 0:01:00]} d6 {[%emt 0:00:30]} 9. a3 {[%emt 0:00:30]} Bg4 {[%emt 0:00:30]} 10. Be3 {[%emt 0:00:30]} Nd4 {[%emt 0:02:30] C84: Closed Ruy Lopez: Unusual White 6th moves.} 11. Bxd4 {[%emt 0:01:30]} exd4 {[%emt 0:00:00]} 12. Nd5 {[%emt 0:00:00]} c5 {[%emt 0:00:00] 12...Nxd5 is the modern continuation.} 13. h3 {[%emt 0:08:00]} Bc8 {[%emt 0:01:30] [#]} 14. Nxf6+ $146 {[%emt 0:13:30]} ({Predecessor:} 14. Qc1 Bb7 15. Qf4 Bxd5 16. Bxd5 Nxd5 17. exd5 Ra7 18. Rfe1 Qa8 19. Qe4 f5 20. Qe6+ {½-½ (45) Rivas Romero,G (2128)-Alvarez Montoya,J (2361) ICCF email 2018}) 14... Bxf6 {[%emt 0:00:30]} 15. Bd5 {[%emt 0:00:30] Not much happened in this game.  Weighted Error Value: White=0.02 (flawless) /Black=0.10 (very precise)} 1/2-1/2

[Event "FIDE WSTC-50-65 2022"]
[Site "Acqui Terme"]
[Date "2022.06.29"]
[Round "9.5"]
[White "Shabalov, Alexander"]
[Black "Gronn, Atle"]
[Result "1/2-1/2"]
[ECO "B01"]
[WhiteElo "2504"]
[BlackElo "2361"]
[Annotator "TA"]
[PlyCount "75"]
[EventDate "2022.06.20"]
[EventType "team-tourn"]
[EventCountry "ITA"]
[SourceTitle "playchess.com"]
[Source "ChessBase"]
[SourceQuality "1"]
[TimeControl "40/5400+30:1800+30"]

{[%evp 10,75,68,54,55,45,38,38,51,36,43,39,43,36,39,16,20,9,17,0,18,13,13,-6,-6,-7,-7,0,0,-23,0,0,8,22,26,25,20,0,0,0,0,-39,-32,-35,-26,-23,-13,-13,-6,-13,-18,-18,-18,-18,-12,-33,0,-33,0,0,3,4,8,0,0,0,0,0]} 1. e4 {[%emt 0:01:00]} d5 {[%emt 0:01:00]} 2. exd5 {[%emt 0:00:00]} Qxd5 {[%emt 0:00:00]} 3. Nc3 {[%emt 0:00:00]} Qd6 {[%emt 0:00:00]} 4. d4 {[%emt 0:00:30]} Nf6 {[%emt 0:00:00]} 5. Nf3 {[%emt 0:00:30]} c6 {[%emt 0:00:00]} 6. Ne5 {[%emt 0:00:30]} g6 {[%emt 0:00:30] B01: Scandinavian Defence.} 7. Bc4 {[%emt 0:07:30]} Be6 {[%emt 0:01:30]} 8. O-O {[%emt 0:00:30] And now Bxe6 would win.} Nbd7 {[%emt 0:10:30] White is slightly better.} 9. Bxe6 {[%emt 0:09:30]} Qxe6 {[%emt 0:02:30] [#]} 10. Re1 $146 {[%emt 0:00:30][%cal Oe5g6]} ({Predecessor:} 10. Nf3 Qd6 11. Re1 Bg7 12. a4 e6 13. b3 Qc7 14. Ba3 O-O-O 15. Qe2 Nb6 16. Ne4 Nxe4 17. Qxe4 {1-0 (44) Amonatov,F (2626)-Okrugin,S (2399) Voronezh 2010}) 10... Nxe5 {[%emt 0:01:30]} 11. dxe5 {[%emt 0:00:30]} Rd8 {[%emt 0:13:30]} 12. Qf3 {[%emt 0:04:30]} (12. Bd2 {feels hotter.} Ng4 13. Ne4 Bg7 14. f4) 12... Nd7 {[%emt 0:04:30]} (12... Bg7 {is interesting.} 13. Bh6 Nh5 14. Be3 Bxe5 15. Bxa7 O-O) 13. Bf4 {[%emt 0:11:30]} Bg7 {[%emt 0:00:30]} 14. Qe3 {[%emt 0:04:30]} Nb6 {[%emt 0:05:30]} 15. a4 {[%emt 0:01:30]} Qf5 {[%emt 0:02:30]} 16. Bg3 {[%emt 0:02:30]} Qxc2 {[%emt 0:03:30]} 17. a5 {[%emt 0:03:30]} Nc8 {[%emt 0:05:30]} 18. Ne4 {[%emt 0:01:30][%cal Bc3e4,Be4c5,Bc5a6,Ba6c7][%mdl 32]} O-O {[%emt 0:02:30]} 19. b4 {[%emt 0:02:30]} Rd5 {[%emt 0:03:30]} 20. Rec1 {[%emt 0:04:30]} Qd3 {[%emt 0:10:30]} 21. Qxd3 {[%emt 0:01:30]} Rxd3 {[%emt 0:00:30]} 22. Nc5 $1 {[%emt 0:05:30][%csl LRb7,LRd3]} Rd5 {[%emt 0:01:30]} 23. f4 {[%emt 0:14:30]} b6 {[%emt 0:00:30]} 24. Na6 {[%emt 0:01:30]} g5 {[%emt 0:03:30]} 25. Nc7 {[%emt 0:07:05]} Rd4 {[%emt 0:02:30]} 26. fxg5 {[%emt 0:02:38]} Rxb4 {[%emt 0:00:30]} 27. Rxc6 {[%emt 0:01:24]} Re4 {[%emt 0:04:30]} 28. axb6 {[%emt 0:05:07]} axb6 {[%emt 0:01:30]} 29. Re1 {[%emt 0:04:10]} Rxe1+ {[%emt 0:00:30]} 30. Bxe1 {[%emt 0:00:05]} Bxe5 {[%emt 0:00:30] [#] Threatens to win with ...Na7.} 31. Nd5 {[%emt 0:00:43][%cal Oc6c8] aiming for Rxc8!} Bd6 {[%emt 0:05:46]} 32. Kf1 {[%emt 0:00:58]} ({Avoid the trap} 32. Nxb6 $2 Nxb6 33. Rxb6 Bc5+ 34. Bf2 Bxb6 35. Bxb6 Rb8 $19) 32... b5 {[%emt 0:02:41]} 33. h4 {[%emt 0:00:07]} f6 {[%emt 0:03:47]} 34. gxf6 {[%emt 0:00:35] The position is equal.} exf6 {[%emt 0:01:16]} 35. Bc3 {[%emt 0:01:09]} Kf7 {[%emt 0:02:44]} 36. Nb6 {[%emt 0:01:27]} Nxb6 {[%emt 0:00:44]} 37. Rxd6 {[%emt 0:00:23]} Nc4 {[%emt 0:00:43]} 38. Rxf6+ {[%emt 0:00:07] Weighted Error Value: White=0.08 (flawless) /Black=0.05 (flawless)} 1/2-1/2

[Event "FIDE WSTC-50-65 2022"]
[Site "Acqui Terme"]
[Date "2022.06.29"]
[Round "9.6"]
[White "Dahl, Fredrik A"]
[Black "Novikov, Igor"]
[Result "0-1"]
[ECO "D02"]
[WhiteElo "2211"]
[BlackElo "2551"]
[Annotator "TA"]
[PlyCount "72"]
[EventDate "2022.06.20"]
[EventType "team-tourn"]
[EventCountry "ITA"]
[SourceTitle "playchess.com"]
[Source "ChessBase"]
[SourceQuality "1"]
[TimeControl "40/5400+30:1800+30"]

{[%evp 9,72,20,25,24,30,0,11,14,17,6,8,0,-7,-7,-6,-7,-4,-14,4,0,7,-17,14,0,13,0,0,0,0,0,0,-14,0,-28,0,0,0,0,-13,-25,-15,-29,-20,-40,-40,-40,-40,-48,-45,-31,-42,-96,-91,-76,-87,-145,-135,-176,-177,-172,-109,-330,-289,-478,-456]} 1. d4 {[%emt 0:01:00]} d5 {[%emt 0:01:00]} 2. Nf3 {[%emt 0:00:00]} Nf6 {[%emt 0:00:00]} 3. g3 {[%emt 0:00:00]} c6 {[%emt 0:02:00]} 4. Bg2 {[%emt 0:00:30]} Bg4 {[%emt 0:01:30]} 5. h3 {[%emt 0:02:30]} Bh5 {[%emt 0:01:30]} 6. c4 {[%emt 0:02:30] D02: 1 d4 d5 2 Nf3 sidelines, including 2...Nf6 3 g3 and 2...Nf6 3 Bf4.} e6 {[%emt 0:01:30]} 7. Nc3 {[%emt 0:06:30]} Nbd7 {[%emt 0:01:30][%cal Bb8d7,Bd7b6,Bb6c4][%mdl 32]} 8. cxd5 {[%emt 0:05:30] The position is equal.} exd5 {[%emt 0:00:30] [#]} 9. Bf4 $146 {[%emt 0:02:30]} ({Predecessor:} 9. Nh4 Bg6 10. Qb3 Qb6 11. Qxb6 axb6 12. g4 b5 13. Bf4 Bb4 14. Nxg6 hxg6 15. Kd2 {½-½ (22) Prasanna Raghuram,R (2424)-Sethuraman,S (2361) Las Vegas 2021}) 9... Be7 {[%emt 0:02:30]} 10. g4 {[%emt 0:03:30]} Bg6 {[%emt 0:00:00]} 11. Nh4 {[%emt 0:00:30]} Nb6 {[%emt 0:06:00]} 12. Nxg6 {[%emt 0:03:30]} hxg6 {[%emt 0:00:30]} 13. Qd3 {[%emt 0:15:30]} Nc4 {[%emt 0:08:30]} 14. b3 {[%emt 0:03:30]} Nb6 {[%emt 0:04:30]} 15. Qg3 {[%emt 0:02:30]} Nc8 {[%emt 0:04:30]} 16. O-O {[%emt 0:03:30]} O-O {[%emt 0:00:30]} 17. Rfd1 {[%emt 0:06:30]} Re8 {[%emt 0:05:30]} 18. Rac1 {[%emt 0:04:30]} Bb4 {[%emt 0:05:30]} 19. Qd3 {[%emt 0:01:30]} Re6 {[%emt 0:05:30]} 20. e3 {[%emt 0:00:30]} Nd6 {[%emt 0:03:30]} 21. Nb1 {[%emt 0:06:30]} Qa5 {[%emt 0:04:30]} 22. Rc2 {[%emt 0:07:30][%cal Oa2a3] Black must now prevent a3!} Nb5 {[%emt 0:00:30] Against a3} 23. a4 {[%emt 0:02:50]} Nd6 {[%emt 0:00:30]} 24. Nd2 {[%emt 0:00:29]} Rae8 {[%emt 0:02:30]} 25. Nf3 {[%emt 0:00:54]} Nfe4 {[%emt 0:07:30]} 26. Ng5 {[%emt 0:02:16]} Nxg5 {[%emt 0:01:30]} 27. Bxg5 {[%emt 0:00:10]} Ne4 {[%emt 0:01:30]} 28. Bf4 {[%emt 0:01:35]} Bd6 {[%emt 0:01:30]} 29. Bxd6 {[%emt 0:00:15]} Nxd6 {[%emt 0:00:30]} 30. Qc3 {[%emt 0:00:51] [#]} (30. Rb1 $15) 30... Qd8 $1 $17 {[%emt 0:00:30]} 31. b4 {[%emt 0:03:48][%cal Ob4b5]} a6 {[%emt 0:00:30] Prevents b5.} 32. Re1 {[%emt 0:02:19]} (32. Qd3 $142) 32... Qh4 {[%emt 0:01:30]} 33. Rce2 {[%emt 0:01:49]} f5 {[%emt 0:01:30][%cal Bf7f5,Bf5g4][%mdl 32]} 34. f3 {[%emt 0:00:17] [#]} Qg3 {[%emt 0:02:30]} ({Black should try} 34... R6e7 $1 $19 35. Rf1 f4) 35. Qc2 $2 {[%emt 0:01:32]} (35. Rc1 $17) 35... Rf6 {[%emt 0:03:30] Strongly threatening ...fxg4.} 36. Kh1 $2 {[%emt 0:01:05]} (36. Rf1 {was called for.}) 36... fxg4 {[%emt 0:01:30] Weighted Error Value: White=0.24 (precise) /Black=0.08 (flawless)} 0-1

[Event "FIDE WSTC-50-65 2022"]
[Site "Acqui Terme"]
[Date "2022.06.29"]
[Round "9.7"]
[White "Ehlvest, Jaan"]
[Black "Berg, Anders Hoyer"]
[Result "1-0"]
[ECO "C01"]
[WhiteElo "2517"]
[BlackElo "2115"]
[Annotator "TA"]
[PlyCount "53"]
[EventDate "2022.06.20"]
[EventType "team-tourn"]
[EventCountry "ITA"]
[SourceTitle "playchess.com"]
[Source "ChessBase"]
[SourceQuality "1"]
[TimeControl "40/5400+30:1800+30"]

{[%evp 18,53,12,15,16,11,28,0,20,17,12,9,47,52,746,25,449,447,443,407,412,385,402,213,188,145,146,146,256,245,231,222,376,321,326,326,318,261]} 1. e4 {[%emt 0:01:00]} e5 {[%emt 0:01:00]} 2. Nf3 {[%emt 0:00:00]} Nf6 {[%emt 0:00:30]} 3. Nxe5 {[%emt 0:01:00]} d6 {[%emt 0:00:30]} 4. Nf3 {[%emt 0:00:30]} Nxe4 {[%emt 0:00:00]} 5. d3 {[%emt 0:00:30]} Nf6 {[%emt 0:01:00]} 6. d4 {[%emt 0:00:30]} d5 {[%emt 0:01:30]} 7. Bd3 {[%emt 0:00:00]} Bd6 {[%emt 0:03:30]} 8. O-O {[%emt 0:00:00][%cal Bh1f1,Bf1e1,Be1e2][%mdl 32]} O-O {[%emt 0:01:30]} 9. h3 $1 {[%emt 0:00:30][%mdl 4] now scores much better than the old 9.Bg5.} h6 {[%emt 0:09:30]} 10. Nc3 {[%emt 0:05:30]} c6 {[%emt 0:07:30] C01: French: Exchange Variation.} 11. Re1 {[%emt 0:06:30]} Qc7 {[%emt 0:12:30]} 12. Ne5 {[%emt 0:01:30]} Re8 {[%emt 0:05:30][%cal Rd6e5] The position is equal.} 13. Bf4 {[%emt 0:05:30]} Nbd7 {[%emt 0:16:30][%cal Rd7e5]} 14. Qf3 {[%emt 0:02:30] [#]} a6 $146 {[%emt 0:09:30][%cal Rd7e5]} ({Predecessor:} 14... Nxe5 15. dxe5 Rxe5 16. Bxe5 Bxe5 17. Re2 Bd7 18. Rae1 Bd6 19. Bf5 Bxf5 20. Qxf5 Qb6 21. Qd3 Rd8 22. b3 Bb4 {1-0 (65) Bacrot,E (2725)-Akobian,V (2647) Riadh 2017}) 15. Re2 {[%emt 0:27:30]} c5 $2 {[%emt 0:09:13][%mdl 8192] [#]} (15... Bxe5 $2 16. dxe5 Nxe5 17. Rxe5 Rxe5 18. Qg3 $18) (15... Nxe5 $14 16. dxe5 Rxe5) 16. Bg3 $2 {[%emt 0:08:30]} (16. Nxd5 Nxd5 17. Nc4 (17. Qxd5 Nf6 $16) 17... Nxf4 $16) (16. Nxf7 $1 $18 {[%mdl 512]} Bxf4 17. Rxe8+ Nxe8 18. Nxd5) 16... cxd4 $2 {[%emt 0:10:07][%mdl 8192]} (16... Nb6 $11 {and Black has nothing to worry.}) 17. Nxd5 $18 {[%emt 0:01:30]} Qc5 {[%emt 0:05:26][%cal Rd7e5]} 18. Nxd7 {[%emt 0:10:30]} Bxd7 {[%emt 0:00:02]} 19. Nxf6+ {[%emt 0:00:30]} gxf6 {[%emt 0:00:07]} 20. Bxd6 {[%emt 0:02:30]} (20. Qxf6 $142 Bxg3 21. Qxh6 (21. fxg3 Rxe2 22. Qxh6 f5 $11) (21. Rxe8+ Bxe8 22. fxg3 Qg5 $18)) 20... Qxd6 {[%emt 0:00:13]} 21. Rae1 $40 {[%emt 0:00:30][%mdl 128] White attacks with force.} Rxe2 {[%emt 0:02:55]} 22. Rxe2 {[%emt 0:00:00]} (22. Bxe2 $6 Bc6 23. Qg4+ Kf8 $16) 22... Re8 {[%emt 0:02:14]} (22... Kg7 $16 {was called for.} 23. b3 (23. Qxb7 Bc6 $16) 23... Rb8) 23. Rxe8+ {[%emt 0:02:00]} ({Much less strong is} 23. Qxb7 Rb8 24. Qe4 (24. Qxa6 Qxa6 25. Bxa6 Rxb2 $16) 24... f5 $18) 23... Bxe8 {[%emt 0:00:00]} 24. Qxb7 {[%emt 0:00:30]} Qf4 $2 {[%emt 0:01:05] [#]} (24... a5 25. Qe4 Kf8) 25. Qe4 {[%emt 0:02:30]} Qc1+ {[%emt 0:00:02]} 26. Kh2 {[%emt 0:00:30]} Bb5 {[%emt 0:00:53]} 27. Qxd4 {[%emt 0:00:30] Weighted Error Value: White=0.72/Black=0.84} 1-0

[Event "FIDE WSTC-50-65 2022"]
[Site "Acqui Terme"]
[Date "2022.06.29"]
[Round "9.8"]
[White "Johnsen, Sylvia"]
[Black "Sokolin, Leonid"]
[Result "0-1"]
[ECO "B26"]
[WhiteElo "1903"]
[BlackElo "2464"]
[Annotator "TA"]
[PlyCount "54"]
[EventDate "2022.06.20"]
[EventType "team-tourn"]
[EventCountry "ITA"]
[SourceTitle "playchess.com"]
[Source "ChessBase"]
[SourceQuality "1"]
[TimeControl "40/5400+30:1800+30"]

{[%evp 14,54,21,0,4,0,4,0,0,-10,3,-20,-12,-11,-9,-53,-54,-243,-122,-204,-212,-208,-210,-210,-204,-242,-186,-215,-237,-219,-213,-231,-197,-265,-269,-265,-262,-445,-340,-750,-618,-1651,-1625]} 1. e4 {[%emt 0:00:00]} c5 {[%emt 0:01:00]} 2. Nc3 {[%emt 0:00:30]} Nc6 {[%emt 0:00:00]} 3. g3 {[%emt 0:00:30]} g6 {[%emt 0:00:00]} 4. Bg2 {[%emt 0:00:00]} Bg7 {[%emt 0:00:00]} 5. d3 {[%emt 0:00:00]} d6 {[%emt 0:00:00]} 6. Be3 {[%emt 0:00:30]} e5 {[%emt 0:00:30]} 7. Qd2 {[%emt 0:06:30] 7.Nh3 gains popularity.} Nd4 {[%emt 0:10:30]} 8. Nd5 {[%emt 0:07:30] is the legacy move (8.Nce2).} Be6 {[%emt 0:01:30] B26: Closed Sicilian: 3 g3, lines with early Be3.} 9. c3 {[%emt 0:00:30]} Bxd5 {[%emt 0:10:30]} 10. exd5 {[%emt 0:04:30]} Nf5 {[%emt 0:00:30] The position is equal.} 11. Nh3 {[%emt 0:19:30]} Nge7 {[%emt 0:03:30][%cal Bg8e7,Be7f5,Bf5e3][%mdl 32] [#]} 12. f4 $146 {[%emt 0:06:30]} ({Predecessor:} 12. O-O O-O 13. Qe2 Nxe3 14. fxe3 b5 15. a4 b4 16. c4 Bh6 17. b3 Rb8 18. Rae1 {½-½ (44) Bohak,J (2311)-Larsen,A (2124) ICCF email 2013}) 12... Nxe3 {[%emt 0:05:30]} 13. Qxe3 {[%emt 0:00:30]} Nf5 {[%emt 0:02:30]} 14. Qe4 {[%emt 0:13:30]} O-O {[%emt 0:01:30] Threatens to win with ...exf4.} 15. O-O-O $2 {[%emt 0:04:30] [#]} (15. O-O $15) 15... Re8 {[%emt 0:02:30]} (15... exf4 $1 $19 {aiming for ...Re8.} 16. Nxf4 Re8) 16. g4 {[%emt 0:04:30] [#]} (16. Rhe1 $17) 16... exf4 $1 $19 {[%emt 0:07:30]} 17. Qxf4 {[%emt 0:00:30]} Ne3 {[%emt 0:03:30]} 18. Rd2 {[%emt 0:03:30]} Qh4 {[%emt 0:14:30]} 19. Qg3 {[%emt 0:21:04]} Qxg4 {[%emt 0:03:30]} 20. Bf3 {[%emt 0:01:29]} Qa4 {[%emt 0:05:30]} 21. Kb1 {[%emt 0:00:52]} Nf5 {[%emt 0:00:30]} 22. Qf2 {[%emt 0:00:36]} Bf6 {[%emt 0:04:30][%cal Bg7f6,Bf6h4,Bh4e1][%mdl 32] Prevents Ng5.} 23. Rg1 {[%emt 0:01:13] [#]} (23. Re2 {was the only defense.}) 23... Bh4 $1 {[%emt 0:01:30]} 24. Qg2 {[%emt 0:00:40]} Be1 {[%emt 0:01:30] White must now prevent ...Ne3.} 25. Rd1 $2 {[%emt 0:00:55]} (25. Bd1 Qa6 26. Ng5 Bxd2 27. Qxd2) 25... Ne3 $1 {[%emt 0:00:30][%csl LRd1,LRg2]} 26. b3 $2 {[%emt 0:00:34] [#]} (26. Qe2 Nxd1 27. Qxd1 Qxd1+ 28. Bxd1) 26... Qh4 $1 {[%emt 0:00:30]} 27. Rdxe1 {[%emt 0:00:52] And now Qg3 would win.} (27. Qg5 Nxd1) 27... Nxg2 {[%emt 0:00:30] Weighted Error Value: White=1.00/Black=0.17 (very precise)} 0-1